Workbook

Sheet Inicio
A6: I. DATOS PERSONALES
A8: Nombre del asegurado:
B9: Apellido paterno | H9: Apellido materno | P9: Nombre(s)
C11: Póliza SSI: | J11: No. de Cuenta: | R11: Reserva SSI Total:
C13: Sueldo quincenal del último recibo de nómina:
J14: Para solicitar un préstamo subsecuente deben de haber transcurrido 6 meses después del último crédito otorgado
A15: II. DATOS DE PRÉSTAMOS ANTERIORES VIGENTES
R16: Deducciones totales (incluyendo los pagos
C17: Suma de Saldo de Préstamos Vigentes: | R17: quincenales de Préstamos vigentes SoluciónLife):
A19: II. DATOS DEL PRÉSTAMO SOLICITADO
C20: Para acceder a este beneficio se requiere un saldo de reserva mínimo de $35,000.00
D21: Monto máximo de préstamo disponible: | E21: =IF((Parámetros!C17*S11)-D17>0,(Parámetros!C17*S11)-D17,0) -> 0 | R21: Monto de préstamo solicitado:
D22: (30% del saldo de reserva)
D24: Monto máximo de pago quincenal: | E24: =MAX(MIN((Parámetros!C17*D13)-S17, IF(S21="",0,(ROUND(PMT(SUM(Amortización!I8:I9)*365.25/24,Parámetros!C24*24-6,FV(SUM(Amortización!I8:I9)*15,6,,S21))*2-5,-1)/2))),0) -> 0 | R24: Monto de pago quincenal solicitado:
N26: De acuerdo al Monto de pago quincenal solicitado el Monto de préstamo máximo es de: | O26: =IF(S24="",0,ROUND(MIN(E21,(PV(365.25/24*SUM(Amortización!I8:I9),(Parámetros!C25-1.6)*24-6,-S24)/(1+365.25/24*SUM(Amortización!I8:I9))^6)),2)) -> 0
A28: III. COMISIÓN POR APERTURA
B30: Comisión por apertura: | C30: =$D$34*Parámetros!$C$7 -> 0 | Q30: Forma de pago de comisión por apertura:
A32: IV. PRÉSTAMO PRE-AUTORIZADO
C34: Monto de Préstamo Pre-autorizado: | D34: =ROUND(IF(OR(S11<33333.33,O26<Parámetros!C16),0,MIN(S21,O26))*2-499.99,-3)/2 -> 0
C35: Monto de pago quincenal: | D35: =IF(S24="",0,MIN(S24,E24)) -> 0
C36: Pago de Comisión por apertura: | D36: =_fdp2 -> Financiamiento
C38: Monto a disponer: | D38: =IF(fdp="Financiamiento",D34,D34-C30) -> 0
A40: El monto de préstamo pre-autorizado se ha ajustado al máximo disponible de acuerdo al monto de pago quincenal solicitado.
W42: Versión 3.00
A50: Financiamiento
A51: Pago único
A52: Financiamiento

Sheet Tabla de amortización
A6: CONDICIONES DEL PRÉSTAMO PRE-AUTORIZADO.
B8: Nombre del Asegurado: | G8: Póliza SSI:
B9: Importe de pago quincenal: | G9: Número de cuenta:
B10: Número de pagos periódicos: | G10: Tasa anual de interés:
B11: Plazo: | G11: Tasa anual de comisión:
B12: Fecha de elaboración: | G12: Comisión por apertura: | H12: 2% del préstamo
A14: Los pagos deberán ser realizados los días 15 y último de cada mes, iniciando el primero de ellos en el corte quincenal próximo posterior a la fecha en la cual MetLife hubiere depositado el monto correspondiente del préstamo otorgado en la cuenta bancaria señalada para tal efecto por el asegurado.
A18: Monto de préstamo | C18: Comisión por apertura | F18: Monto a disponer | H18: Capital inicial
C19: Monto | D19: Forma de pago
A22: ="Tabla de amortización del préstamo otorgado a "&Inicio!P8&" "&Inicio!B8&" "&Inicio!H8&" por MetLife México S.A., relativo al contrato de préstamo número ____________" -> Tabla de amortización del préstamo otorgado a por MetLife México S.A., relativo al contrato de préstamo número ____________
A24: La obligación de pago inicia en la fecha correspondiente al corte quincenal próximo posterior a la fecha en la cual MetLife hubiere depositado el monto correspondiente del préstamo otorgado en la cuenta bancaria que al efecto he señalado.
B27: Año | C27: No. de Amortización | D27: Capital | E27: Interés | F27: Comisión por Administración | G27: Pago Quincenal

Sheet Amortización (hidden)
N4: 1 | O4: Enero
N5: 2 | O5: Febrero
A6: DATOS DEL PRÉSTAMO | N6: 3 | O6: Marzo
B7: =Inicio!S24 -> 0 | D7: =Inicio!S21 -> 0 | G7: Tasa | H7: Anual | I7: Diaria | J7: Mensual | N7: 4 | O7: Abril
C8: Nombre del asegurado | D8: =Inicio!P8&" "&Inicio!B8&" "&Inicio!H8 ->  | G8: Interes | H8: =Parámetros!C5 -> 0.082 | I8: =Amortización!H8/360 -> 0.0002277777778 | J8: =H8/12 -> 0.006833333333 | N8: 5 | O8: Mayo
C9: Fecha de elaboración | D9: =TODAY() -> 2017-05-18 | G9: Comisión | H9: =Parámetros!C6 -> 0.043 | I9: =Amortización!H9/360 -> 0.0001194444444 | J9: =H9/12 -> 0.003583333333 | N9: 6 | O9: Junio
N10: 7 | O10: Julio
C11: Préstamo pre-autorizado | D11: =Inicio!D34 -> 0 | H11: Pago de Comisión por apertura: | I11: =Inicio!$D$36 -> Financiamiento | N11: 8 | O11: Agosto
C12: Importe del pago | D12: =Inicio!D35 -> 0 | H12: Comisión por apertura: | I12: =Inicio!$C$30 -> 0 | N12: 9 | O12: Septiembre
C13: Número de pagos | D13: =COUNTIF(Amortización!H21:H502,-Inicio!D35)+1 -> 483 | H13: Monto a disponer: | I13: =Inicio!$D$38 -> 0 | N13: 10 | O13: Octubre
C14: Plazo | D14: =M16&M17&M18 -> 20 años, 4 meses y 1 quincena | H14: Capital Inicial | I14: =E21 -> 0 | N14: 11 | O14: Noviembre
C15: Plazo en años | D15: =(D13+7)/24 -> 20.41666667 | N15: 12 | O15: Diciembre
L16: =INT((D13+6)/24) -> 20 | M16: =L16&" años, " -> 20 años,
L17: =INT((D13+6-(L16*24))/2) -> 4 | M17: =IF(L17=0,"",IF(L17=1,L17&" mes ",L17&" meses ")) -> 4 meses
A18: TABLA DE AMORTIZACIÓN. | L18: =INT((D13+6-(L16*24)-(L17*2))) -> 1 | M18: =IF(L18=0,"",IF(L18=1," y "&L18&" quincena"," y "&L18&" quincenas")) -> y 1 quincena
B20: Días | C20: Año | D20: Quincena | E20: Cap Inicial | F20: Interés | G20: Comisión | H20: Pago quincenal | I20: Cap Final
B21: =365/24 -> 15.20833333 | C21: 1 | D21: 1 | E21: =IF(I11="Financiamiento",D11+I12,D11) -> 0 | F21: =ROUND(E21*$I$8,2)*B21 -> 0 | G21: =ROUND(E21*$I$9,2)*B21 -> 0 | H21: 0 | I21: =SUM(E21:H21) -> 0
B22: =365/24 -> 15.20833333 | C22: 1 | D22: =D21+1 -> 2 | E22: =I21 -> 0 | F22: 0 | G22: 0 | H22: 0 | I22: 0
B23: =B22 -> 15.20833333 | C23: =IF(MOD(D23-1,24)=0,1,0)+C22 -> 1 | D23: 3 | E23: 0 | F23: 0 | G23: 0 | H23: 0 | I23: 0
B24: 15.20833333 | C24: 1 | D24: 4 | E24: 0 | F24: 0 | G24: 0 | H24: 0 | I24: 0
B25: 15.20833333 | C25: 1 | D25: 5 | E25: 0 | F25: 0 | G25: 0 | H25: 0 | I25: 0
B26: 15.20833333 | C26: 1 | D26: 6 | E26: 0 | F26: 0 | G26: 0 | H26: 0 | I26: 0
B27: 15.20833333 | C27: 1 | D27: 7 | E27: 0 | F27: 0 | G27: 0 | H27: =-D12 -> 0 | I27: 0
B28: 15.20833333 | C28: 1 | D28: 8 | E28: 0 | F28: 0 | G28: 0 | H28: =IF(-H27<I27,H27,-SUM(E28:G28)) -> 0 | I28: 0
B29: 15.20833333 | C29: 1 | D29: 9 | E29: 0 | F29: 0 | G29: 0 | H29: 0 | I29: 0
B30: 15.20833333 | C30: 1 | D30: 10 | E30: 0 | F30: 0 | G30: 0 | H30: 0 | I30: 0
B31: 15.20833333 | C31: 1 | D31: 11 | E31: 0 | F31: 0 | G31: 0 | H31: 0 | I31: 0
B32: 15.20833333 | C32: 1 | D32: 12 | E32: 0 | F32: 0 | G32: 0 | H32: 0 | I32: 0
B33: 15.20833333 | C33: 1 | D33: 13 | E33: 0 | F33: 0 | G33: 0 | H33: 0 | I33: 0
B34: 15.20833333 | C34: 1 | D34: 14 | E34: 0 | F34: 0 | G34: 0 | H34: 0 | I34: 0
B35: 15.20833333 | C35: 1 | D35: 15 | E35: 0 | F35: 0 | G35: 0 | H35: 0 | I35: 0
B36: 15.20833333 | C36: 1 | D36: 16 | E36: 0 | F36: 0 | G36: 0 | H36: 0 | I36: 0
B37: 15.20833333 | C37: 1 | D37: 17 | E37: 0 | F37: 0 | G37: 0 | H37: 0 | I37: 0
B38: 15.20833333 | C38: 1 | D38: 18 | E38: 0 | F38: 0 | G38: 0 | H38: 0 | I38: 0
B39: 15.20833333 | C39: 1 | D39: 19 | E39: 0 | F39: 0 | G39: 0 | H39: 0 | I39: 0
B40: 15.20833333 | C40: 1 | D40: 20 | E40: 0 | F40: 0 | G40: 0 | H40: 0 | I40: 0
B41: 15.20833333 | C41: 1 | D41: 21 | E41: 0 | F41: 0 | G41: 0 | H41: 0 | I41: 0
B42: 15.20833333 | C42: 1 | D42: 22 | E42: 0 | F42: 0 | G42: 0 | H42: 0 | I42: 0
B43: 15.20833333 | C43: 1 | D43: 23 | E43: 0 | F43: 0 | G43: 0 | H43: 0 | I43: 0
B44: 15.20833333 | C44: 1 | D44: 24 | E44: 0 | F44: 0 | G44: 0 | H44: 0 | I44: 0
B45: 15.20833333 | C45: 2 | D45: 25 | E45: 0 | F45: 0 | G45: 0 | H45: 0 | I45: 0
B46: 15.20833333 | C46: 2 | D46: 26 | E46: 0 | F46: 0 | G46: 0 | H46: 0 | I46: 0
B47: 15.20833333 | C47: 2 | D47: 27 | E47: 0 | F47: 0 | G47: 0 | H47: 0 | I47: 0
B48: 15.20833333 | C48: 2 | D48: 28 | E48: 0 | F48: 0 | G48: 0 | H48: 0 | I48: 0
B49: 15.20833333 | C49: 2 | D49: 29 | E49: 0 | F49: 0 | G49: 0 | H49: 0 | I49: 0
B50: 15.20833333 | C50: 2 | D50: 30 | E50: 0 | F50: 0 | G50: 0 | H50: 0 | I50: 0
B51: 15.20833333 | C51: 2 | D51: 31 | E51: 0 | F51: 0 | G51: 0 | H51: 0 | I51: 0
B52: 15.20833333 | C52: 2 | D52: 32 | E52: 0 | F52: 0 | G52: 0 | H52: 0 | I52: 0
B53: 15.20833333 | C53: 2 | D53: 33 | E53: 0 | F53: 0 | G53: 0 | H53: 0 | I53: 0
B54: 15.20833333 | C54: 2 | D54: 34 | E54: 0 | F54: 0 | G54: 0 | H54: 0 | I54: 0
B55: 15.20833333 | C55: 2 | D55: 35 | E55: 0 | F55: 0 | G55: 0 | H55: 0 | I55: 0
B56: 15.20833333 | C56: 2 | D56: 36 | E56: 0 | F56: 0 | G56: 0 | H56: 0 | I56: 0
B57: 15.20833333 | C57: 2 | D57: 37 | E57: 0 | F57: 0 | G57: 0 | H57: 0 | I57: 0
B58: 15.20833333 | C58: 2 | D58: 38 | E58: 0 | F58: 0 | G58: 0 | H58: 0 | I58: 0
B59: 15.20833333 | C59: 2 | D59: 39 | E59: 0 | F59: 0 | G59: 0 | H59: 0 | I59: 0
B60: 15.20833333 | C60: 2 | D60: 40 | E60: 0 | F60: 0 | G60: 0 | H60: 0 | I60: 0
B61: 15.20833333 | C61: 2 | D61: 41 | E61: 0 | F61: 0 | G61: 0 | H61: 0 | I61: 0
B62: 15.20833333 | C62: 2 | D62: 42 | E62: 0 | F62: 0 | G62: 0 | H62: 0 | I62: 0
B63: 15.20833333 | C63: 2 | D63: 43 | E63: 0 | F63: 0 | G63: 0 | H63: 0 | I63: 0
B64: 15.20833333 | C64: 2 | D64: 44 | E64: 0 | F64: 0 | G64: 0 | H64: 0 | I64: 0
B65: 15.20833333 | C65: 2 | D65: 45 | E65: 0 | F65: 0 | G65: 0 | H65: 0 | I65: 0
B66: 15.20833333 | C66: 2 | D66: 46 | E66: 0 | F66: 0 | G66: 0 | H66: 0 | I66: 0
B67: 15.20833333 | C67: 2 | D67: 47 | E67: 0 | F67: 0 | G67: 0 | H67: 0 | I67: 0
B68: 15.20833333 | C68: 2 | D68: 48 | E68: 0 | F68: 0 | G68: 0 | H68: 0 | I68: 0
B69: 15.20833333 | C69: 3 | D69: 49 | E69: 0 | F69: 0 | G69: 0 | H69: 0 | I69: 0
B70: 15.20833333 | C70: 3 | D70: 50 | E70: 0 | F70: 0 | G70: 0 | H70: 0 | I70: 0
B71: 15.20833333 | C71: 3 | D71: 51 | E71: 0 | F71: 0 | G71: 0 | H71: 0 | I71: 0
B72: 15.20833333 | C72: 3 | D72: 52 | E72: 0 | F72: 0 | G72: 0 | H72: 0 | I72: 0
B73: 15.20833333 | C73: 3 | D73: 53 | E73: 0 | F73: 0 | G73: 0 | H73: 0 | I73: 0
B74: 15.20833333 | C74: 3 | D74: 54 | E74: 0 | F74: 0 | G74: 0 | H74: 0 | I74: 0
B75: 15.20833333 | C75: 3 | D75: 55 | E75: 0 | F75: 0 | G75: 0 | H75: 0 | I75: 0
B76: 15.20833333 | C76: 3 | D76: 56 | E76: 0 | F76: 0 | G76: 0 | H76: 0 | I76: 0
B77: 15.20833333 | C77: 3 | D77: 57 | E77: 0 | F77: 0 | G77: 0 | H77: 0 | I77: 0
B78: 15.20833333 | C78: 3 | D78: 58 | E78: 0 | F78: 0 | G78: 0 | H78: 0 | I78: 0
B79: 15.20833333 | C79: 3 | D79: 59 | E79: 0 | F79: 0 | G79: 0 | H79: 0 | I79: 0
B80: 15.20833333 | C80: 3 | D80: 60 | E80: 0 | F80: 0 | G80: 0 | H80: 0 | I80: 0
B81: 15.20833333 | C81: 3 | D81: 61 | E81: 0 | F81: 0 | G81: 0 | H81: 0 | I81: 0
B82: 15.20833333 | C82: 3 | D82: 62 | E82: 0 | F82: 0 | G82: 0 | H82: 0 | I82: 0
B83: 15.20833333 | C83: 3 | D83: 63 | E83: 0 | F83: 0 | G83: 0 | H83: 0 | I83: 0
B84: 15.20833333 | C84: 3 | D84: 64 | E84: 0 | F84: 0 | G84: 0 | H84: 0 | I84: 0
B85: 15.20833333 | C85: 3 | D85: 65 | E85: 0 | F85: =ROUND(E85*$I$8,2)*B85 -> 0 | G85: =ROUND(E85*$I$9,2)*B85 -> 0 | H85: 0 | I85: =SUM(E85:H85) -> 0
B86: 15.20833333 | C86: 3 | D86: =D85+1 -> 66 | E86: =I85 -> 0 | F86: 0 | G86: 0 | H86: 0 | I86: 0
B87: =B86 -> 15.20833333 | C87: =IF(MOD(D87-1,24)=0,1,0)+C86 -> 3 | D87: 67 | E87: 0 | F87: 0 | G87: 0 | H87: 0 | I87: 0
B88: 15.20833333 | C88: 3 | D88: 68 | E88: 0 | F88: 0 | G88: 0 | H88: 0 | I88: 0
B89: 15.20833333 | C89: 3 | D89: 69 | E89: 0 | F89: 0 | G89: 0 | H89: 0 | I89: 0
B90: 15.20833333 | C90: 3 | D90: 70 | E90: 0 | F90: 0 | G90: 0 | H90: 0 | I90: 0
B91: 15.20833333 | C91: 3 | D91: 71 | E91: 0 | F91: 0 | G91: 0 | H91: 0 | I91: 0
B92: 15.20833333 | C92: 3 | D92: 72 | E92: 0 | F92: 0 | G92: 0 | H92: =IF(-H91<I91,H91,-SUM(E92:G92)) -> 0 | I92: 0
B93: 15.20833333 | C93: 4 | D93: 73 | E93: 0 | F93: 0 | G93: 0 | H93: 0 | I93: 0
B94: 15.20833333 | C94: 4 | D94: 74 | E94: 0 | F94: 0 | G94: 0 | H94: 0 | I94: 0
B95: 15.20833333 | C95: 4 | D95: 75 | E95: 0 | F95: 0 | G95: 0 | H95: 0 | I95: 0
B96: 15.20833333 | C96: 4 | D96: 76 | E96: 0 | F96: 0 | G96: 0 | H96: 0 | I96: 0
B97: 15.20833333 | C97: 4 | D97: 77 | E97: 0 | F97: 0 | G97: 0 | H97: 0 | I97: 0
B98: 15.20833333 | C98: 4 | D98: 78 | E98: 0 | F98: 0 | G98: 0 | H98: 0 | I98: 0
B99: 15.20833333 | C99: 4 | D99: 79 | E99: 0 | F99: 0 | G99: 0 | H99: 0 | I99: 0
B100: 15.20833333 | C100: 4 | D100: 80 | E100: 0 | F100: 0 | G100: 0 | H100: 0 | I100: 0
B101: 15.20833333 | C101: 4 | D101: 81 | E101: 0 | F101: 0 | G101: 0 | H101: 0 | I101: 0
B102: 15.20833333 | C102: 4 | D102: 82 | E102: 0 | F102: 0 | G102: 0 | H102: 0 | I102: 0
B103: 15.20833333 | C103: 4 | D103: 83 | E103: 0 | F103: 0 | G103: 0 | H103: 0 | I103: 0
B104: 15.20833333 | C104: 4 | D104: 84 | E104: 0 | F104: 0 | G104: 0 | H104: 0 | I104: 0
B105: 15.20833333 | C105: 4 | D105: 85 | E105: 0 | F105: 0 | G105: 0 | H105: 0 | I105: 0
B106: 15.20833333 | C106: 4 | D106: 86 | E106: 0 | F106: 0 | G106: 0 | H106: 0 | I106: 0
B107: 15.20833333 | C107: 4 | D107: 87 | E107: 0 | F107: 0 | G107: 0 | H107: 0 | I107: 0
B108: 15.20833333 | C108: 4 | D108: 88 | E108: 0 | F108: 0 | G108: 0 | H108: 0 | I108: 0
B109: 15.20833333 | C109: 4 | D109: 89 | E109: 0 | F109: 0 | G109: 0 | H109: 0 | I109: 0
B110: 15.20833333 | C110: 4 | D110: 90 | E110: 0 | F110: 0 | G110: 0 | H110: 0 | I110: 0
B111: 15.20833333 | C111: 4 | D111: 91 | E111: 0 | F111: 0 | G111: 0 | H111: 0 | I111: 0
B112: 15.20833333 | C112: 4 | D112: 92 | E112: 0 | F112: 0 | G112: 0 | H112: 0 | I112: 0
B113: 15.20833333 | C113: 4 | D113: 93 | E113: 0 | F113: 0 | G113: 0 | H113: 0 | I113: 0
B114: 15.20833333 | C114: 4 | D114: 94 | E114: 0 | F114: 0 | G114: 0 | H114: 0 | I114: 0
B115: 15.20833333 | C115: 4 | D115: 95 | E115: 0 | F115: 0 | G115: 0 | H115: 0 | I115: 0
B116: 15.20833333 | C116: 4 | D116: 96 | E116: 0 | F116: 0 | G116: 0 | H116: 0 | I116: 0
B117: 15.20833333 | C117: 5 | D117: 97 | E117: 0 | F117: 0 | G117: 0 | H117: 0 | I117: 0
B118: 15.20833333 | C118: 5 | D118: 98 | E118: 0 | F118: 0 | G118: 0 | H118: 0 | I118: 0
B119: 15.20833333 | C119: 5 | D119: 99 | E119: 0 | F119: 0 | G119: 0 | H119: 0 | I119: 0
B120: 15.20833333 | C120: 5 | D120: 100 | E120: 0 | F120: 0 | G120: 0 | H120: 0 | I120: 0
B121: 15.20833333 | C121: 5 | D121: 101 | E121: 0 | F121: 0 | G121: 0 | H121: 0 | I121: 0
B122: 15.20833333 | C122: 5 | D122: 102 | E122: 0 | F122: 0 | G122: 0 | H122: 0 | I122: 0
B123: 15.20833333 | C123: 5 | D123: 103 | E123: 0 | F123: 0 | G123: 0 | H123: 0 | I123: 0
B124: 15.20833333 | C124: 5 | D124: 104 | E124: 0 | F124: 0 | G124: 0 | H124: 0 | I124: 0
B125: 15.20833333 | C125: 5 | D125: 105 | E125: 0 | F125: 0 | G125: 0 | H125: 0 | I125: 0
B126: 15.20833333 | C126: 5 | D126: 106 | E126: 0 | F126: 0 | G126: 0 | H126: 0 | I126: 0
B127: 15.20833333 | C127: 5 | D127: 107 | E127: 0 | F127: 0 | G127: 0 | H127: 0 | I127: 0
B128: 15.20833333 | C128: 5 | D128: 108 | E128: 0 | F128: 0 | G128: 0 | H128: 0 | I128: 0
B129: 15.20833333 | C129: 5 | D129: 109 | E129: 0 | F129: 0 | G129: 0 | H129: 0 | I129: 0
B130: 15.20833333 | C130: 5 | D130: 110 | E130: 0 | F130: 0 | G130: 0 | H130: 0 | I130: 0
B131: 15.20833333 | C131: 5 | D131: 111 | E131: 0 | F131: 0 | G131: 0 | H131: 0 | I131: 0
B132: 15.20833333 | C132: 5 | D132: 112 | E132: 0 | F132: 0 | G132: 0 | H132: 0 | I132: 0
B133: 15.20833333 | C133: 5 | D133: 113 | E133: 0 | F133: 0 | G133: 0 | H133: 0 | I133: 0
B134: 15.20833333 | C134: 5 | D134: 114 | E134: 0 | F134: 0 | G134: 0 | H134: 0 | I134: 0
B135: 15.20833333 | C135: 5 | D135: 115 | E135: 0 | F135: 0 | G135: 0 | H135: 0 | I135: 0
B136: 15.20833333 | C136: 5 | D136: 116 | E136: 0 | F136: 0 | G136: 0 | H136: 0 | I136: 0
B137: 15.20833333 | C137: 5 | D137: 117 | E137: 0 | F137: 0 | G137: 0 | H137: 0 | I137: 0
B138: 15.20833333 | C138: 5 | D138: 118 | E138: 0 | F138: 0 | G138: 0 | H138: 0 | I138: 0
B139: 15.20833333 | C139: 5 | D139: 119 | E139: 0 | F139: 0 | G139: 0 | H139: 0 | I139: 0
B140: 15.20833333 | C140: 5 | D140: 120 | E140: 0 | F140: 0 | G140: 0 | H140: 0 | I140: 0
B141: 15.20833333 | C141: 6 | D141: 121 | E141: 0 | F141: 0 | G141: 0 | H141: 0 | I141: 0
B142: 15.20833333 | C142: 6 | D142: 122 | E142: 0 | F142: 0 | G142: 0 | H142: 0 | I142: 0
B143: 15.20833333 | C143: 6 | D143: 123 | E143: 0 | F143: 0 | G143: 0 | H143: 0 | I143: 0
B144: 15.20833333 | C144: 6 | D144: 124 | E144: 0 | F144: 0 | G144: 0 | H144: 0 | I144: 0
B145: 15.20833333 | C145: 6 | D145: 125 | E145: 0 | F145: 0 | G145: 0 | H145: 0 | I145: 0
B146: 15.20833333 | C146: 6 | D146: 126 | E146: 0 | F146: 0 | G146: 0 | H146: 0 | I146: 0
B147: 15.20833333 | C147: 6 | D147: 127 | E147: 0 | F147: 0 | G147: 0 | H147: 0 | I147: 0
B148: 15.20833333 | C148: 6 | D148: 128 | E148: 0 | F148: 0 | G148: 0 | H148: 0 | I148: 0
B149: 15.20833333 | C149: 6 | D149: 129 | E149: 0 | F149: =ROUND(E149*$I$8,2)*B149 -> 0 | G149: =ROUND(E149*$I$9,2)*B149 -> 0 | H149: 0 | I149: =SUM(E149:H149) -> 0
B150: 15.20833333 | C150: 6 | D150: =D149+1 -> 130 | E150: =I149 -> 0 | F150: 0 | G150: 0 | H150: 0 | I150: 0
B151: =B150 -> 15.20833333 | C151: =IF(MOD(D151-1,24)=0,1,0)+C150 -> 6 | D151: 131 | E151: 0 | F151: 0 | G151: 0 | H151: 0 | I151: 0
B152: 15.20833333 | C152: 6 | D152: 132 | E152: 0 | F152: 0 | G152: 0 | H152: 0 | I152: 0
B153: 15.20833333 | C153: 6 | D153: 133 | E153: 0 | F153: 0 | G153: 0 | H153: 0 | I153: 0
B154: 15.20833333 | C154: 6 | D154: 134 | E154: 0 | F154: 0 | G154: 0 | H154: 0 | I154: 0
B155: 15.20833333 | C155: 6 | D155: 135 | E155: 0 | F155: 0 | G155: 0 | H155: 0 | I155: 0
B156: 15.20833333 | C156: 6 | D156: 136 | E156: 0 | F156: 0 | G156: 0 | H156: =IF(-H155<I155,H155,-SUM(E156:G156)) -> 0 | I156: 0
B157: 15.20833333 | C157: 6 | D157: 137 | E157: 0 | F157: 0 | G157: 0 | H157: 0 | I157: 0
B158: 15.20833333 | C158: 6 | D158: 138 | E158: 0 | F158: 0 | G158: 0 | H158: 0 | I158: 0
B159: 15.20833333 | C159: 6 | D159: 139 | E159: 0 | F159: 0 | G159: 0 | H159: 0 | I159: 0
B160: 15.20833333 | C160: 6 | D160: 140 | E160: 0 | F160: 0 | G160: 0 | H160: 0 | I160: 0
B161: 15.20833333 | C161: 6 | D161: 141 | E161: 0 | F161: 0 | G161: 0 | H161: 0 | I161: 0
B162: 15.20833333 | C162: 6 | D162: 142 | E162: 0 | F162: 0 | G162: 0 | H162: 0 | I162: 0
B163: 15.20833333 | C163: 6 | D163: 143 | E163: 0 | F163: 0 | G163: 0 | H163: 0 | I163: 0
B164: 15.20833333 | C164: 6 | D164: 144 | E164: 0 | F164: 0 | G164: 0 | H164: 0 | I164: 0
B165: 15.20833333 | C165: 7 | D165: 145 | E165: 0 | F165: 0 | G165: 0 | H165: 0 | I165: 0
B166: 15.20833333 | C166: 7 | D166: 146 | E166: 0 | F166: 0 | G166: 0 | H166: 0 | I166: 0
B167: 15.20833333 | C167: 7 | D167: 147 | E167: 0 | F167: 0 | G167: 0 | H167: 0 | I167: 0
B168: 15.20833333 | C168: 7 | D168: 148 | E168: 0 | F168: 0 | G168: 0 | H168: 0 | I168: 0
B169: 15.20833333 | C169: 7 | D169: 149 | E169: 0 | F169: 0 | G169: 0 | H169: 0 | I169: 0
B170: 15.20833333 | C170: 7 | D170: 150 | E170: 0 | F170: 0 | G170: 0 | H170: 0 | I170: 0
B171: 15.20833333 | C171: 7 | D171: 151 | E171: 0 | F171: 0 | G171: 0 | H171: 0 | I171: 0
B172: 15.20833333 | C172: 7 | D172: 152 | E172: 0 | F172: 0 | G172: 0 | H172: 0 | I172: 0
B173: 15.20833333 | C173: 7 | D173: 153 | E173: 0 | F173: 0 | G173: 0 | H173: 0 | I173: 0
B174: 15.20833333 | C174: 7 | D174: 154 | E174: 0 | F174: 0 | G174: 0 | H174: 0 | I174: 0
B175: 15.20833333 | C175: 7 | D175: 155 | E175: 0 | F175: 0 | G175: 0 | H175: 0 | I175: 0
B176: 15.20833333 | C176: 7 | D176: 156 | E176: 0 | F176: 0 | G176: 0 | H176: 0 | I176: 0
B177: 15.20833333 | C177: 7 | D177: 157 | E177: 0 | F177: 0 | G177: 0 | H177: 0 | I177: 0
B178: 15.20833333 | C178: 7 | D178: 158 | E178: 0 | F178: 0 | G178: 0 | H178: 0 | I178: 0
B179: 15.20833333 | C179: 7 | D179: 159 | E179: 0 | F179: 0 | G179: 0 | H179: 0 | I179: 0
B180: 15.20833333 | C180: 7 | D180: 160 | E180: 0 | F180: 0 | G180: 0 | H180: 0 | I180: 0
B181: 15.20833333 | C181: 7 | D181: 161 | E181: 0 | F181: 0 | G181: 0 | H181: 0 | I181: 0
B182: 15.20833333 | C182: 7 | D182: 162 | E182: 0 | F182: 0 | G182: 0 | H182: 0 | I182: 0
B183: 15.20833333 | C183: 7 | D183: 163 | E183: 0 | F183: 0 | G183: 0 | H183: 0 | I183: 0
B184: 15.20833333 | C184: 7 | D184: 164 | E184: 0 | F184: 0 | G184: 0 | H184: 0 | I184: 0
B185: 15.20833333 | C185: 7 | D185: 165 | E185: 0 | F185: 0 | G185: 0 | H185: 0 | I185: 0
B186: 15.20833333 | C186: 7 | D186: 166 | E186: 0 | F186: 0 | G186: 0 | H186: 0 | I186: 0
B187: 15.20833333 | C187: 7 | D187: 167 | E187: 0 | F187: 0 | G187: 0 | H187: 0 | I187: 0
B188: 15.20833333 | C188: 7 | D188: 168 | E188: 0 | F188: 0 | G188: 0 | H188: 0 | I188: 0
B189: 15.20833333 | C189: 8 | D189: 169 | E189: 0 | F189: 0 | G189: 0 | H189: 0 | I189: 0
B190: 15.20833333 | C190: 8 | D190: 170 | E190: 0 | F190: 0 | G190: 0 | H190: 0 | I190: 0
B191: 15.20833333 | C191: 8 | D191: 171 | E191: 0 | F191: 0 | G191: 0 | H191: 0 | I191: 0
B192: 15.20833333 | C192: 8 | D192: 172 | E192: 0 | F192: 0 | G192: 0 | H192: 0 | I192: 0
B193: 15.20833333 | C193: 8 | D193: 173 | E193: 0 | F193: 0 | G193: 0 | H193: 0 | I193: 0
B194: 15.20833333 | C194: 8 | D194: 174 | E194: 0 | F194: 0 | G194: 0 | H194: 0 | I194: 0
B195: 15.20833333 | C195: 8 | D195: 175 | E195: 0 | F195: 0 | G195: 0 | H195: 0 | I195: 0
B196: 15.20833333 | C196: 8 | D196: 176 | E196: 0 | F196: 0 | G196: 0 | H196: 0 | I196: 0
B197: 15.20833333 | C197: 8 | D197: 177 | E197: 0 | F197: 0 | G197: 0 | H197: 0 | I197: 0
B198: 15.20833333 | C198: 8 | D198: 178 | E198: 0 | F198: 0 | G198: 0 | H198: 0 | I198: 0
B199: 15.20833333 | C199: 8 | D199: 179 | E199: 0 | F199: 0 | G199: 0 | H199: 0 | I199: 0
B200: 15.20833333 | C200: 8 | D200: 180 | E200: 0 | F200: 0 | G200: 0 | H200: 0 | I200: 0
B201: 15.20833333 | C201: 8 | D201: 181 | E201: 0 | F201: 0 | G201: 0 | H201: 0 | I201: 0
B202: 15.20833333 | C202: 8 | D202: 182 | E202: 0 | F202: 0 | G202: 0 | H202: 0 | I202: 0
B203: 15.20833333 | C203: 8 | D203: 183 | E203: 0 | F203: 0 | G203: 0 | H203: 0 | I203: 0
B204: 15.20833333 | C204: 8 | D204: 184 | E204: 0 | F204: 0 | G204: 0 | H204: 0 | I204: 0
... 298 more rows

Sheet Parámetros
A1: PRÉSTAMOS SSI.
A4: TASAS
A5: Interés ordinario | C5: 0.082
A6: Comisiones por admon: | C6: 0.043
A7: Comisión por apertura: | C7: 0.02
A10: RESERVAS SSI
A11: Reserva mínima: | C11: 35000
A12: Reserva máxima: | C12: No Aplica
A15: MONTO DEL PRÉSTAMO
A16: Mínimo: | C16: 10000
A17: Máximo (%Rva): | C17: 0.3
A19: CAPACIDAD DE PAGO:
A20: Mínimo: | C20: 65
A21: Máximo: | C21: No Aplica
A23: PLAZO (Años).
A24: Mínimo: | C24: 3
A25: Máximo: | C25: 20
